Workbook

Sheet 02-07.02, 16-21.02
A1: Школа | B1: - | E1: Отд./корп | I1: День
A3: Прием пищи | B3: Раздел | C3: № рец. | D3: Блюдо | E3: Выход, г | F3: Цена | G3: Калорийность | H3: Белки | I3: Жиры | J3: Углеводы
A4: Завтрак | B4: гор.блюдо | C4: ТТК 2020 г | D4: Котлеты куриные "Нежные" запеченые с сыром | E4: 100 | G4: 191.00 | H4: 12.06 | I4: 11.43 | J4: 9.94
B5: гор блюдо | C5: №302/2015 г | D5: Каша гречневая вязкая | E5: 180 | G5: 166.00 | H5: 4.20 | I5: 4.84 | J5: 26.43
B6: гор.напиток | C6: ТТК 2021 г | D6: Напиток яблочный | E6: 200 | G6: 52.00 | H6: 0.10 | I6: 0.10 | J6: 12.43
A7: понедельник | B7: хлеб | D7: Хлебная корзина | E7: 20/20 | G7: 91.00 | H7: 2.52 | I7: 0.36 | J7: 18.84
C8: № 15/2015 г
B9: печенье | D9: Вафли весовые 1шт | E9: 21 | G9: 86.00 | H9: 2.75 | I9: 2.50 | J9: 13.00
A11: ИТОГО | E11: 555 | F11: 77.76 | G11: =G4+G5+G6+G7+G8+G9 -> 586.00 | H11: =H4+H5+H6+H7+H8+H9 -> 21.63 | I11: =I4+I5+I6+I7+I8+I9 -> 19.23 | J11: =J4+J5+J6+J7+J8+J9 -> 80.65
A12: Завтрак | B12: гор.блюдо | C12: ТТК 2021 | D12: Жаркое по домашнему | E12: 30/160 | G12: 312.00 | H12: 12.62 | I12: 13.62 | J12: 34.79
A13: вторник | B13: гор.напиток | C13: ТТК 2021 | D13: Чай с сахаром | E13: 200/8 | G13: 32.00 | H13: 0.01 | I13: 0.00 | J13: 7.99
B14: хлеб | D14: Хлебная корзина | E14: 20/20 | G14: 91.00 | H14: 2.52 | I14: 0.36 | J14: 18.84
B17: фрукты | D17: Салат из свеклы отварной (с маслом) | E17: 100 | G17: 94.00 | H17: 1.43 | I17: 6.09 | J17: 8.36
A19: ИТОГО | E19: 510 | F19: 77.76 | G19: 502.00 | H19: 17.23 | I19: 18.09 | J19: 66.43
A20: Завтрак | B20: гор.блюдо | C20: ТТК 2022 г | D20: Плов с куриными грудками | E20: 40/160 | G20: 287 | H20: 12.76 | I20: 13.684 | J20: 28.28
B22: гор.напиток | C22: №348/2015 | D22: Напиток из шиповника | E22: 200 | G22: 41.00 | H22: 0.01 | I22: 0.00 | J22: 10.18
A23: среда | B23: хлеб | D23: Хлебная корзина | E23: 20/20 | G23: 91.00 | H23: 2.52 | I23: 0.36 | J23: 18.84
B24: хлеб | D24: Салат из моркови | E24: 100 | G24: 96.00 | H24: 1.17 | I24: 5.09 | J24: 11.20
C25: ТТК 2022 г | D25: Плоды и ягоды свежие (яблоки) | E25: 100 | G25: 47 | H25: 0.40 | I25: 0.40 | J25: 9.80
A28: ИТОГО | E28: 570 | F28: 77.76 | G28: =G20+G21+G22+G23+G24+G25+G26 -> 562.00 | H28: =H20+H21+H22+H23+H24+H25+H26 -> 16.86 | I28: =I20+I21+I22+I23+I24+I25+I26 -> 19.53 | J28: =J20+J21+J22+J23+J24+J25+J26 -> 78.30
A29: Завтрак | B29: гор.блюдо | C29: ТТК 2022 г | D29: Фрикассе из куриных грудок | E29: 50/50 | G29: 115.00 | H29: 10.17 | I29: 6.23 | J29: 4.68
B30: гор.напиток | C30: № 648/2004 г | D30: Чай с сахаром | E30: 200/8 | G30: 32.00 | H30: 0.01 | I30: 0.00 | J30: 7.99
B31: хлеб | D31: Хлебная корзина | E31: 20/20 | G31: 91.00 | H31: 2.52 | I31: 0.36 | J31: 18.84
D32: Салат любительский | E32: 100 | G32: 104.00 | H32: 1.62 | I32: 8.42 | J32: 5.08
A33: четверг | D33: Макаронные изделия отварные | E33: 180 | G33: 252.00 | H33: 6.722 | I33: 6.082 | J33: 42.487
A35: ИТОГО | E35: 510 | F35: 77.76 | G35: 483.00 | H35: 16.39 | I35: 15.90 | J35: 79.22
A36: Завтрак | B36: гор.блюдо | C36: ТТК 2022 г | D36: Котлеты сытные с соусом томатным | E36: 90/10 | G36: 151 | H36: 12.954 | I36: 7.004 | J36: 9.004
B37: гор.напиток | C37: ТТК 2021г | D37: Компот из замороженной компотной смеси | E37: 200 | G37: 46 | H37: 0.135 | I37: 0.023 | J37: 11.15
A38: пятница | B38: хлеб | D38: Хлебная корзина | E38: 20/20 | G38: 91 | H38: 2.52 | I38: 0.36 | J38: 18.84
D39: Картофель запеченый | E39: 180 | G39: 242.00 | H39: 4.21 | I39: 9.87 | J39: 34.08
A43: ИТОГО | E43: 615 | F43: 77.76 | G43: =G36+G37+G38+G39+G40+G41 -> 530 | H43: =H36+H37+H38+H39+H40+H41 -> 19.82 | I43: =I36+I37+I38+I39+I40+I41 -> 17.26 | J43: =J36+J37+J38+J39+J40+J41 -> 73.08
A44: Завтрак | B44: гор.блюдо | C44: № 243/2015 г | D44: Сосиски отварные с соусом для запекания | E44: 50/50 | G44: 174 | H44: 11.35 | I44: 12.38 | J44: 4.18
D45: Рис отварной | E45: 180 | G45: 249.00 | H45: 4.61 | I45: 5.32 | J45: 45.62
B46: гор.напиток | C46: ТТК 2021 г | D46: Напиток из урюка | E46: 200 | G46: 42 | H46: 0.80 | I46: 0.06 | J46: 9.46
B47: хлеб | D47: Хлебная корзина | E47: 20/20 | G47: 96.00 | H47: 2.67 | I47: 0.38 | J47: 19.82
A48: суббота | D48: Печенье весовое 3шт | E48: 9.6 | G48: 43.00 | H48: 0.66 | I48: 1.33 | J48: 7.11
D49: Плоды и ягоды свежие (яблоки) | E49: 100 | G49: 47.00 | H49: 0.40 | I49: 0.40 | J49: 9.80
A51: ИТОГО | E51: 530 | F51: 77.76 | G51: =G44+G45+G46+G48+G49+G47 -> 651 | H51: =H44+H45+H46+H48+H49+H47 -> 20.50 | I51: =I44+I45+I46+I48+I49+I47 -> 19.87 | J51: =J44+J45+J46+J48+J49+J47 -> 95.99

Sheet 09-14.02, 23-28.02
A1: Школа | B1: - | E1: Отд./корп | I1: День
A3: Прием пищи | B3: Раздел | C3: № рец. | D3: Блюдо | E3: Выход, г | F3: Цена | G3: Калорийность | H3: Белки | I3: Жиры | J3: Углеводы
A4: Завтрак | B4: гор.блюдо | C4: ТТК 2022 г | D4: Котлеты из мяса птицы запеченые с сыром | E4: 90/10 | G4: 164.00 | H4: 11.66 | I4: 9.70 | J4: 7.52
B5: гор блюдо | C5: № 202/2015 г | D5: Каша гречневая вязкая | E5: 180 | G5: 166.00 | H5: 4.20 | I5: 4.84 | J5: 26.43
B6: гор.напиток | C6: № 648/2004 г | D6: Напиток из урюка | E6: 200 | G6: 42.00 | H6: 0.80 | I6: 0.06 | J6: 9.46
A7: понедельник | B7: хлеб | D7: Хлебная корзина | E7: 20/20 | G7: 91.00 | H7: 2.52 | I7: 0.36 | J7: 18.84
D8: Печенье сдобное шоколадное | E8: 15 | G8: 79.00 | H8: 1.17 | I8: 4.18 | J8: 9.22
C9: №338/2015 г | D9: Плоды и ягоды свежие (яблоки) | E9: 100 | G9: 47.00 | H9: 0.40 | I9: 0.40 | J9: 9.80
A12: ИТОГО | E12: 557 | F12: 77.76 | G12: =G4+G5+G6+G7+G8+G9+G10 -> 589 | H12: =H4+H5+H6+H7+H8+H9+H10 -> 20.75 | I12: =I4+I5+I6+I7+I8+I9+I10 -> 19.55 | J12: =J4+J5+J6+J7+J8+J9+J10 -> 81.28
A13: Завтрак | B13: гор.блюдо | C13: ТТК 2021 | D13: Жаркое из птицы | E13: 40/160 | G13: 239.00 | H13: 11.13 | I13: 10.26 | J13: 25.42
A14: вторник | B14: гор.напиток | C14: ТТК 2021 г | D14: Чай с сахаром | E14: 200/8 | G14: 32 | H14: 0.007 | I14: 0.002 | J14: 7.986
B15: хлеб | D15: Хлебная корзина | E15: 20/20 | G15: 91.00 | H15: 2.52 | I15: 0.36 | J15: 18.84
B16: фрукты | C16: № 338/2015г | D16: Салат любительский | E16: 100 | G16: 104.00 | H16: 1.62 | I16: 8.42 | J16: 5.08
D17: Вафли весовые 1шт | E17: 21 | G17: 86.00 | H17: 2.75 | I17: 2.50 | J17: 13.00
A20: ИТОГО | E20: 525 | F20: 77.76 | G20: =G13+G14+G15+G16+G17+G18 -> 552.00 | H20: =H13+H14+H15+H16+H17+H18 -> 18.02 | I20: =I13+I14+I15+I16+I17+I18 -> 21.54 | J20: =J13+J14+J15+J16+J17+J18 -> 70.33
B21: гор.блюдо | C21: ТТК 2021 г | D21: Гуляш из куриных грудок | E21: 50/50 | G21: 114.00 | H21: 9.81 | I21: 7.55 | J21: 1.73
A22: Завтрак | B22: гор.блюдо | C22: № 304/2015 г | D22: Макароны изделия отварные | E22: 180 | G22: 252 | H22: 6.72 | I22: 6.082 | J22: 42.49
B23: гор.напиток | C23: ТТК 2023 г | D23: Компот из замороженной компоткой смеси | E23: 200 | G23: 46.00 | H23: 0.14 | I23: 0.02 | J23: 11.15
A24: среда | B24: хлеб | D24: Хлебная корзина | E24: 20/20 | G24: 91.00 | H24: 2.52 | I24: 0.36 | J24: 18.84
D25: Печенье сдобное американер с кунжутом | E25: 15 | G25: 81.00 | H25: 1.25 | I25: 4.31 | J25: 9.27
C26: ТТК | D26: Салат витаминный | E26: 100 | G26: 75.00 | H26: 1.32 | I26: 5.17 | J26: 5.69
A28: ИТОГО | E28: 610 | F28: 77.76 | G28: =G22+G23+G24+G25+G26+G21 -> 659.00 | H28: =H22+H23+H24+H25+H26+H21 -> 21.75 | I28: =I22+I23+I24+I25+I26+I21 -> 23.50 | J28: =J22+J23+J24+J25+J26+J21 -> 89.17
A29: Завтрак | B29: гор.блюдо | C29: ТТК | D29: Плов с говядиной | E29: 30/160 | G29: 311.00 | H29: 13.60 | I29: 12.54 | J29: 35.97
B30: гор.блюдо | C30: № 302/2015 г
B31: гор.напиток | C31: ТТК 2021 г | D31: Чай с сахаром | E31: 200/8 | G31: 32.00 | H31: 0.01 | I31: 0.00 | J31: 7.99
B32: хлеб | D32: Хлебная корзина | E32: 20/20 | G32: 91.00 | H32: 2.52 | I32: 0.36 | J32: 18.84
A33: четверг | D33: Салат из моркови с яблоком | E33: 100 | G33: 132.00 | H33: 0.99 | I33: 10.14 | J33: 8.786
D34: Печенье весовое 3шт | E34: 10 | G34: 43.00 | H34: 0.66 | I34: 1.33 | J34: 7.11
A36: ИТОГО | E36: 500 | F36: 77.76 | G36: =G29+G30+G31+G32+G33+G34+G35 -> 609.00 | H36: =H29+H30+H31+H32+H33+H34+H35 -> 17.78 | I36: =I29+I30+I31+I32+I33+I34+I35 -> 24.37 | J36: =J29+J30+J31+J32+J33+J34+J35 -> 78.69
A37: Завтрак | B37: гор.блюдо | C37: ТТК 2021 г | D37: Котлеты аппетитные мясо-куриные запеченые с сыром | E37: 100 | G37: 178.00 | H37: 10.08 | I37: 8.74 | J37: 14.66
B38: гор. блюдо | C38: № 312/2015 г | D38: Пюре картофельное | E38: 180 | G38: 175.00 | H38: 3.94 | I38: 5.59 | J38: 26.43
B39: гор.напиток | C39: №348/2015 г | D39: Чай с сахаром | E39: 200/8 | G39: 32.00 | H39: 0.01 | I39: 0.00 | J39: 7.99
A40: пятница | B40: хлеб | D40: Хлебная корзина | E40: 20/20 | G40: 91.00 | H40: 2.52 | I40: 0.36 | J40: 18.84
A44: ИТОГО | E44: 552 | F44: 77.76 | G44: =G37+G38+G39+G40+G41+G42 -> 476 | H44: =H37+H38+H39+H40+H41+H42 -> 16.54 | I44: =I37+I38+I39+I40+I41+I42 -> 14.69 | J44: =J37+J38+J39+J40+J41+J42 -> 67.92
A45: Завтрак | B45: гор.блюдо | C45: № 243/2015 г | D45: Пельмени для умников и умниц отварные с соусом для запекания | E45: 150/30 | G45: 295.00 | H45: 12.70 | I45: 14.71 | J45: 28.00
B47: гор.напиток | C47: ТТК | D47: Чай с сахаром | E47: 200/8 | G47: 32 | H47: 0.01 | I47: 0.00 | J47: 7.99
A48: суббота | B48: хлеб | D48: Хлебная корзина | E48: 20/20 | G48: 91.00 | H48: 2.52 | I48: 0.36 | J48: 18.84
D49: Вафли весовые | E49: 21 | G49: 86.00 | H49: 2.75 | I49: 2.50 | J49: 13.00
D50: Плоды и ягоды свежие (яблоки) | E50: 100 | G50: 47.00 | H50: 0.40 | I50: 0.40 | J50: 9.80
A52: ИТОГО | E52: 530 | F52: 77.76 | G52: =G45+G46+G47+G48+G49+G50 -> 551 | H52: =H45+H46+H47+H48+H50+H49 -> 18.38 | I52: =I45+I46+I47+I48+I50+I49 -> 17.97 | J52: =J45+J46+J47+J48+J50+J49 -> 77.63
